bitfinex-derivatives/quotes_ETHF0:USTF0_20241005
["timestamp","ask_amount","ask_price","bid_price","bid_amount"]
[1728160246573,0.75237,2399.1,2398.9,0.72039]
[1728160247182,0.75237,2399.1,2398.9,0.3869]
[1728160248286,0.33348,2399.0,2398.9,0.3869]
[1728160248484,0.33348,2399.0,2398.9,0.92833112]
[1728160248680,0.75237,2399.1,2398.9,0.92833112]
[1728160248886,0.75237,2399.1,2398.9,0.3869]
[1728160249583,0.75237,2399.1,2398.9,0.7204]
[1728160251888,0.75237,2399.1,2398.9,0.3869]
[1728160252088,0.33348,2399.0,2398.9,0.3869]
[1728160252289,0.75238,2399.1,2398.9,0.92822769]
[1728160252486,0.75238,2399.1,2398.9,0.3869]
[1728160255087,1.15338,2399.1,2398.9,0.3869]
[1728160257585,0.33348,2399.0,2398.9,0.3869]
[1728160257786,0.33348,2399.0,2398.9,0.92822003]
[1728160258885,0.33348,2399.0,2398.9,0.54132003]
[1728160259695,0.8199,2399.1,2398.7,1.92888827]
[1728160259696,0.33351,2398.9,2398.7,1.92888827]
[1728160259894,0.75091,2398.9,2398.8,0.54136092]
[1728160260089,0.75091,2398.9,2398.8,5.31500832]
[1728160261998,0.75091,2398.9,2398.7,1.92888827]
[1728160261999,0.33351,2398.8,2398.7,1.08848827]
[1728160262188,3.6252,2398.9,2398.7,0.54139307]
[1728160262388,0.33353,2398.7,2398.5,1.51298827]
[1728160262587,0.3922,2398.6,2398.5,1.51298827]
[1728160262795,0.3922,2398.6,2398.5,3.25446481]
[1728160262997,0.3922,2398.6,2398.5,4.75446481]
[1728160263383,0.3922,2398.6,2398.5,6.3454549]
[1728160264794,0.3922,2398.6,2398.5,5.47906218]
[1728160264993,0.3922,2398.6,2398.5,6.01196629]
[1728160265196,0.3922,2398.6,2398.5,4.4209762]
[1728160265498,3.2078,2398.9,2398.7,0.33351]
[1728160266194,3.2078,2398.9,2398.5,3.01298827]
[1728160266416,3.2078,2398.9,2398.8,0.33351]
[1728160266591,0.72369,2399.0,2398.8,0.33351]
[1728160266786,0.72369,2399.0,2398.8,1.15021]
[1728160267494,0.75237,2399.1,2398.9,5.15758965]
[1728160267694,0.75237,2399.1,2398.9,5.24669965]
[1728160267891,0.75237,2399.1,2398.9,5.58019965]
[1728160269294,0.75237,2399.1,2398.9,5.24669965]
[1728160270590,0.33348,2399.0,2398.9,5.24669965]
[1728160270892,0.33348,2399.0,2398.9,5.78819564]
[1728160271290,0.33348,2399.0,2398.9,5.78818937]
[1728160271792,0.75238,2399.1,2398.9,6.12172318]
[1728160271994,0.75238,2399.1,2398.9,5.58019965]
[1728160273088,0.33348,2399.0,2398.9,5.24669965]
[1728160273288,0.33348,2399.0,2398.9,5.78825334]
[1728160273799,0.4189,2399.1,2398.9,5.78825334]
[1728160274095,0.75238,2399.1,2398.9,5.58018965]
[1728160274300,0.33347,2399.1,2398.9,5.58018965]
[1728160274799,3.598,2399.2,2398.9,5.24669965]
[1728160275095,0.33348,2399.1,2398.9,5.58018965]
[1728160277300,0.33348,2399.1,2399.0,0.54170701]
[1728160280402,3.2078,2399.2,2399.0,2.04170701]
[1728160280600,0.93052,2399.6,2399.1,2.04170701]
[1728160280601,3.6229,2399.5,2399.1,2.04170701]
[1728160280801,3.2078,2399.5,2399.4,1.83343]
[1728160281102,3.2078,2399.5,2399.4,6.76306351]
[1728160281901,3.2078,2399.5,2399.4,7.16766351]
[1728160283207,3.2078,2399.5,2399.4,11.33566351]
[1728160284302,3.2078,2399.5,2399.4,11.33553306]
[1728160287504,3.2078,2399.5,2399.4,11.33532363]
[1728160288302,3.3048,2399.8,2399.7,0.33339]
[1728160288604,3.3048,2399.8,2399.7,2.37447971]
[1728160288605,3.2078,2399.8,2399.7,2.37447971]
[1728160289400,3.2078,2399.8,2399.7,3.15447971]
[1728160289605,3.2078,2399.8,2399.7,7.32167971]
[1728160289802,3.2078,2399.8,2399.7,13.86025416]
[1728160290102,3.2078,2399.8,2399.7,15.44890067]
[1728160290300,3.2078,2399.8,2399.7,13.86025416]
[1728160290612,3.2078,2399.8,2399.7,12.45381791]
[1728160290808,3.2078,2399.8,2399.7,12.99436306]
[1728160291504,3.2078,2399.8,2399.7,11.90546213]
[1728160292498,3.2078,2400.0,2399.7,11.57207213]
[1728160292700,3.6101,2400.3,2399.9,1.5]
[1728160292899,3.2078,2400.3,2400.2,1.83332]
[1728160293112,0.8085,2400.4,2400.2,1.83332]
[1728160293415,0.8085,2400.4,2400.2,1.91753608]
[1728160293607,1.14179,2400.4,2400.2,1.91753608]
[1728160294210,0.8085,2400.4,2400.2,1.91753608]
[1728160294709,0.75328,2400.5,2400.2,1.91753608]
[1728160294710,0.42,2400.5,2400.4,0.33329]
[1728160294903,3.54105,2400.7,2400.4,0.33329]
[1728160294904,0.33326,2400.6,2400.4,1.5]
[1728160295103,3.94865,2400.7,2400.4,6.68523655]
[1728160295306,3.94865,2400.7,2400.5,0.4148]
[1728160297001,0.33328,2400.5,2400.4,4.43924655]
[1728160297201,0.33328,2400.5,2400.0,0.4148]
[1728160297202,1.5,2400.5,2400.0,0.4148]
[1728160297415,1.5,2400.5,2399.9,0.74605]
[1728160297416,4.049,2400.4,2399.9,1.9127]
[1728160297612,4.049,2400.4,2400.1,4.74254331]
[1728160297804,4.049,2400.4,2400.0,4.74254331]
[1728160297805,0.33333,2400.1,2400.0,4.74254331]
[1728160298002,0.33333,2400.1,2399.9,2.3275]
[1728160298207,0.4076,2400.3,2399.9,2.3275]
[1728160298407,0.74092,2400.3,2400.0,6.24254331]
[1728160300306,0.33332,2400.2,2400.0,6.24254331]
[1728160301124,0.74091,2400.3,2400.0,6.57588331]
[1728160305431,0.4076,2400.3,2400.1,0.33333]
[1728160305724,0.4076,2400.3,2400.1,0.73163]
[1728160305921,0.4076,2400.3,2400.2,0.4223]
[1728160306426,0.4076,2400.3,2400.2,0.75562]
[1728160306826,0.4076,2400.3,2400.2,0.4223]
[1728160308026,4.049,2400.4,2400.2,0.75562]
[1728160308223,4.811,2400.4,2400.2,0.4223]
[1728160309128,1.6032,2400.4,2400.2,0.4223]
[1728160310821,1.2699,2400.4,2400.2,0.4223]
[1728160311022,0.3333,2400.3,2400.2,0.4223]
[1728160312625,0.4287,2400.4,2400.2,7.00960319]
[1728160313331,0.4287,2400.4,2400.3,0.413]
[1728160313628,0.4287,2400.4,2400.3,4.84880551]
[1728160313832,0.4287,2400.4,2400.3,5.18210551]
[1728160314836,3.54108,2400.5,2400.3,5.18210551]
[1728160315030,3.95778,2400.5,2400.3,5.18210551]
[1728160315830,3.95778,2400.5,2400.3,4.84880551]
[1728160317333,3.6245,2400.5,2400.3,4.84880551]
[1728160317534,3.95778,2400.5,2400.3,4.43580551]
[1728160318129,3.95778,2400.5,2400.3,4.76910551]
[1728160320528,0.33329,2400.4,2400.3,4.43580551]
[1728160322032,0.3333,2400.3,2400.2,0.0373]
[1728160329929,3.2078,2400.4,2400.2,0.0373]
[1728160330143,3.5411,2400.4,2400.2,0.0373]
[1728160330643,3.2078,2400.4,2400.2,0.0373]
[1728160330938,0.3333,2400.3,2400.2,0.0373]
[1728160333338,0.3333,2400.3,2400.2,0.57845323]
[1728160333544,3.5411,2400.4,2400.2,0.57845323]
[1728160333744,0.3333,2400.3,2400.2,0.0373]
[1728160333953,0.3333,2400.3,2400.2,0.57846764]
[1728160334841,0.3333,2400.3,2400.2,0.0373]
[1728160335041,0.3333,2400.3,2400.2,0.57869109]
[1728160337347,0.3333,2400.3,2400.2,1.44525474]
[1728160338251,0.3333,2400.3,2400.2,1.44548299]
[1728160338447,0.3333,2400.3,2400.2,0.0373]
[1728160338647,0.3333,2400.3,2400.2,1.44558638]
[1728160338844,0.3333,2400.3,2400.2,2.31231106]
[1728160339050,0.3333,2400.3,2400.2,1.44567329]
[1728160339549,0.3333,2400.3,2400.2,1.40837329]
[1728160339754,3.54109,2400.4,2400.2,6.11111597]
[1728160339944,3.54109,2400.4,2400.3,0.54168203]
[1728160340140,3.54109,2400.4,2400.3,0.96788203]
[1728160341749,3.54109,2400.4,2400.3,0.4262]
[1728160341948,3.54109,2400.4,2400.3,0.96791589]
[1728160342552,3.2078,2400.4,2400.3,0.96791589]
[1728160342849,3.2078,2400.4,2400.3,1.35581589]
[1728160343051,3.54109,2400.4,2400.3,1.35581589]
[1728160344349,3.2078,2400.4,2400.3,1.35581589]
[1728160344550,3.2078,2400.4,2400.3,1.68911589]
[1728160344753,3.2078,2400.4,2400.3,1.35581589]
[1728160344947,3.2078,2400.4,2400.3,0.8141]
[1728160345148,3.2078,2400.4,2400.3,1.1474]
[1728160345344,3.2078,2400.4,2400.3,3.09775266]
[1728160345541,3.2078,2400.4,2400.3,3.96457145]
[1728160345751,3.2078,2400.4,2400.3,3.09774554]
[1728160346055,0.73897,2400.6,2400.3,5.13126907]
[1728160346245,0.73897,2400.6,2400.4,2.83077857]
[1728160346246,0.33327,2400.6,2400.4,2.83077857]
[1728160346447,0.33327,2400.6,2400.5,0.54176411]
[1728160347754,3.6029,2400.7,2400.5,0.54176411]
[1728160348056,3.2078,2400.7,2400.6,3.64452504]
[1728160348257,3.2078,2400.7,2400.6,4.03859219]
[1728160348756,3.2078,2400.7,2400.6,4.03829553]
[1728160349257,3.2078,2400.7,2400.6,3.17211982]
[1728160350560,0.4302,2401.1,2400.6,13.41750743]
[1728160350755,0.3332,2401.1,2400.9,1.5]
[1728160350951,0.3332,2401.1,2401.0,0.8436]
[1728160352056,3.6235,2401.2,2400.8,1.83323]
[1728160352057,0.33321,2401.0,2400.8,1.83323]
[1728160352255,1.5,2401.0,2400.7,1.48606567]
[1728160352460,0.33325,2400.7,2400.6,1.50846567]
[1728160352753,0.33326,2400.6,2400.5,0.4236]
[1728160352956,0.74896,2400.6,2400.5,0.96441956]
[1728160355061,6.41456,2400.6,2400.5,0.54081956]
[1728160355357,6.41456,2400.6,2400.3,4.7078]
[1728160355358,5.4803,2400.6,2400.3,4.7078]
[1728160355658,5.4803,2400.6,2400.4,0.4002]
[1728160355659,1.64797,2400.6,2400.4,0.4002]
[1728160355863,1.64797,2400.6,2400.4,1.2389]
[1728160356063,1.3147,2400.6,2400.4,1.2389]
[1728160356261,0.33328,2400.5,2400.4,1.2389]
[1728160356468,0.33328,2400.5,2400.4,1.77979375]
[1728160357467,0.75998,2400.5,2400.4,0.94109375]
[1728160357668,1.17268,2400.5,2400.4,0.94109375]
[1728160361668,1.17268,2400.5,2400.4,0.4002]
[1728160361870,1.17268,2400.5,2400.4,0.94124029]
[1728160362666,1.17268,2400.5,2400.4,0.54104029]
[1728160362866,0.3333,2400.3,2400.2,0.8278]
[1728160363065,0.3333,2400.3,2400.2,1.36888786]
[1728160364273,0.3333,2400.3,2400.2,0.54108786]
[1728160366073,0.7593,2400.3,2400.2,0.54108786]
[1728160366475,0.33332,2400.2,2400.1,0.3981]
[1728160366771,0.33332,2400.2,2400.1,0.93929424]
[1728160366973,0.33332,2400.2,2400.1,0.54119424]
[1728160367877,0.33332,2400.2,2400.1,0.95769424]
[1728160368277,0.33332,2400.2,2400.1,0.95794169]
[1728160368471,0.426,2400.3,2400.1,1.29126169]
[1728160368667,0.426,2400.3,2400.1,0.74982]
[1728160369379,0.33332,2400.2,2400.1,0.4165]
[1728160369572,0.33332,2400.2,2400.1,0.95791707]
[1728160369877,0.33332,2400.2,2400.1,0.99521707]
[1728160373373,0.33332,2400.2,2400.1,0.4538]
[1728160373573,0.33332,2400.2,2400.1,0.99520182]
[1728160378281,0.33332,2400.2,2400.1,0.9951913]
[1728160383683,0.33332,2400.2,2400.1,0.4538]
[1728160383879,0.33332,2400.2,2400.1,0.99511285]
[1728160385075,0.33332,2400.2,2400.1,0.57861285]
[1728160387283,0.33332,2400.2,2400.1,0.0373]
[1728160387487,0.33332,2400.2,2400.1,0.57862164]
[1728160387685,0.33332,2400.2,2400.1,0.0373]
[1728160391887,0.33332,2400.2,2399.9,2.63286]
[1728160392090,0.33333,2400.1,2400.0,0.541205]
[1728160392385,0.33333,2400.1,2400.0,5.15914704]
[1728160393581,0.33333,2400.1,2399.6,0.4077]
[1728160393582,10.1664,2400.1,2399.6,0.4077]
[1728160393781,4.0412,2399.9,2399.6,0.4077]
[1728160394000,0.33339,2399.7,2399.6,0.4077]
[1728160400898,0.33341,2399.6,2399.4,2.3292]
[1728160401092,0.33341,2399.5,2399.4,1.2198]
[1728160401287,0.72091,2399.5,2399.4,1.76079974]
[1728160402390,0.3875,2399.5,2399.4,1.76079974]
[1728160402996,0.3875,2399.5,2399.4,1.55323]
[1728160403182,1.11831,2399.6,2399.4,2.09418202]
[1728160403387,1.11831,2399.6,2399.4,1.55323]
[1728160406084,0.7849,2399.6,2399.4,1.55323]
[1728160406690,0.7849,2399.6,2399.4,1.2198]
[1728160406892,1.11831,2399.6,2399.4,1.2198]
[1728160411608,0.7849,2399.6,2399.4,1.2198]
[1728160411904,0.33341,2399.5,2399.4,1.2198]
[1728160412103,0.33341,2399.5,2399.4,0.8292]
[1728160412297,1.5,2399.5,2399.4,0.8292]
[1728160412493,0.33344,2399.3,2399.2,0.3884]
[1728160412695,0.33344,2399.3,2398.9,4.93866341]
[1728160412696,0.33348,2399.0,2398.9,3.2078]
[1728160412895,1.9036,2399.4,2398.7,1.08924227]
[1728160412896,1.5,2399.1,2398.7,1.08924227]
[1728160413100,1.5,2399.1,2398.6,2.02226341]
[1728160413101,0.4036,2398.9,2398.6,1.47764227]
[1728160413293,0.4036,2398.9,2398.8,0.33351]
[1728160413499,0.4036,2398.9,2398.6,1.47764227]
[1728160413699,0.73711,2398.9,2398.8,0.4265]
[1728160413897,0.4036,2398.9,2398.8,0.4265]
[1728160419604,0.8272,2398.9,2398.8,0.4265]
[1728160422202,0.8272,2398.9,2398.8,0.4638]
[1728160423007,1.1607,2398.9,2398.8,0.4638]
[1728160424312,0.8272,2398.9,2398.8,0.4638]
[1728160424809,1.1607,2398.9,2398.8,0.4638]
[1728160425009,2.6607,2398.9,2398.8,0.0373]
[1728160425511,6.8295,2398.9,2398.8,0.0373]
[1728160427414,12.8295,2398.9,2398.8,0.0373]
[1728160427601,12.8295,2398.9,2398.2,0.097]
[1728160427602,0.33358,2398.4,2398.2,0.097]
[1728160427806,0.3942,2398.3,2398.2,0.3336]
[1728160428214,0.3942,2398.3,2398.2,9.09209432]
[1728160428708,1.5,2398.4,2398.2,9.09209432]
[1728160428907,1.5,2398.4,2398.2,4.92249432]
[1728160429111,3.93556,2398.5,2398.4,0.33357]
[1728160429112,3.2078,2398.5,2398.4,0.33357]
[1728160429415,3.2078,2398.5,2398.4,6.43373229]
[1728160429607,3.3048,2398.8,2398.7,0.33353]
[1728160429810,3.2078,2398.8,2398.7,0.33353]
[1728160430111,1.83349,2399.0,2398.7,0.33353]
[1728160430306,1.83349,2399.0,2398.8,0.428]
[1728160430501,4.4921,2399.1,2398.8,1.15131]
[1728160430502,4.82558,2399.1,2398.8,1.15131]
[1728160430717,1.5,2398.9,2398.1,0.097]
[1728160431009,4.4921,2399.1,2398.4,5.37360618]
[1728160431010,1.5,2398.6,2398.4,5.37360618]
[1728160431204,5.04133,2398.7,2398.4,5.37360618]
[1728160431524,5.04133,2398.7,2398.4,0.76156]
[1728160431525,4.7078,2398.7,2398.4,0.76156]
[1728160432906,5.04133,2398.7,2398.4,0.76156]
[1728160433905,3.2078,2398.7,2398.4,0.428]
[1728160434115,3.2078,2398.7,2398.6,0.33354]
[1728160434312,3.2078,2398.7,2398.5,4.98888875]
[1728160434615,3.2078,2398.7,2398.6,0.4192]
[1728160435214,3.2078,2398.7,2398.6,0.75274]
[1728160435912,3.6078,2399.1,2398.6,10.63919477]
[1728160436216,3.6078,2399.1,2398.9,0.33349]
[1728160436407,3.6078,2399.1,2399.0,0.8043]
[1728160436614,3.94127,2399.1,2399.0,0.8043]
[1728160437518,0.3335,2398.9,2398.7,0.73992]
[1728160437713,1.8335,2398.9,2398.8,0.3981]
[1728160437906,1.8335,2398.9,2398.8,4.97434121]
[1728160438523,1.8335,2398.9,2398.3,1.92318227]
[1728160438524,0.33354,2398.6,2398.3,0.33357]
[1728160438823,0.33354,2398.6,2398.5,0.4046]
[1728160439013,1.83354,2398.6,2398.5,0.4046]
[1728160439921,1.5,2398.6,2398.5,0.4046]
[1728160440321,1.83354,2398.6,2398.5,0.4046]
[1728160441019,1.9178,2398.7,2398.5,0.4046]
[1728160441216,2.25133,2398.7,2398.5,0.4046]
[1728160441618,0.33353,2398.7,2398.5,0.73815]
[1728160442119,5.1053,2398.8,2398.5,0.73815]
[1728160442319,0.33353,2398.7,2398.5,0.73815]
[1728160443317,5.1053,2398.8,2398.5,0.4046]
[1728160443523,0.33354,2398.6,2398.5,0.4046]
[1728160443721,1.5,2398.7,2398.5,0.4046]
[1728160443921,1.83354,2398.7,2398.5,0.4046]
[1728160445514,1.5,2398.7,2398.5,0.4046]
[1728160445725,0.33354,2398.6,2398.5,0.4046]
[1728160445911,3.2078,2398.8,2398.5,0.4046]
[1728160446224,0.33349,2399.0,2398.8,0.33351]
[1728160446415,3.2078,2399.1,2398.9,1.1761]
[1728160446722,3.54128,2399.1,2398.9,5.65565069]
[1728160446920,3.2078,2399.1,2398.9,5.65565069]
[1728160447124,3.2078,2399.1,2399.0,0.33348]
[1728160450126,3.54127,2399.1,2398.9,5.65565069]
[1728160450428,3.2078,2399.1,2398.9,5.98914069]
[1728160450727,3.2078,2399.1,2399.0,0.33348]
[1728160451117,3.2078,2399.1,2398.9,5.65565069]
[1728160451319,3.2078,2399.1,2398.9,5.98914069]
[1728160452023,3.2078,2399.1,2399.0,0.33348]
[1728160452419,3.2078,2399.1,2399.0,4.68714384]
[1728160454226,3.2078,2399.1,2399.0,5.22844302]
[1728160454421,0.33343,2399.4,2399.1,0.33346]
[1728160454822,0.33343,2399.4,2399.2,0.389]
[1728160456323,0.72743,2399.4,2399.2,0.389]
[1728160456529,0.72743,2399.4,2399.2,0.72246]
[1728160457819,0.394,2399.4,2399.3,0.33344]
[1728160458126,3.2078,2399.6,2399.5,0.33341]
[1728160458330,9.17338,2400.0,2399.5,0.33341]
[1728160458331,0.73669,2399.7,2399.5,0.33341]
[1728160458524,0.4033,2399.7,2399.6,0.4127]
[1728160459031,4.0543,2399.9,2399.6,0.4127]
[1728160459224,3.96967,2399.9,2399.7,1.16518]
[1728160459426,3.96967,2399.9,2399.7,5.24867966]
[1728160459920,3.96967,2399.9,2399.7,5.58205966]
[1728160460624,3.96967,2399.9,2399.7,5.24867966]
[1728160461221,0.33337,2399.8,2399.7,5.24867966]
[1728160461425,0.33337,2399.8,2399.7,4.41687966]
[1728160465228,0.33337,2399.8,2399.4,0.8151]
[1728160465229,3.25,2399.8,2399.4,0.8151]
[1728160465428,0.33341,2399.5,2399.4,0.4054]
[1728160465924,0.76011,2399.5,2399.4,0.4054]
[1728160475538,0.76011,2399.5,2399.4,0.4427]
[1728160482253,4.92811,2399.5,2399.4,0.0373]
[1728160490960,10.92811,2399.5,2399.4,0.0373]
[1728160491155,0.33348,2399.0,2398.9,0.4105]
[1728160491361,1.83348,2399.0,2398.9,0.4105]
[1728160492163,1.5,2399.0,2398.9,0.744]
[1728160492958,1.83348,2399.0,2398.9,0.4105]
[1728160495969,0.33348,2399.0,2398.9,0.4105]
[1728160497757,0.3335,2398.9,2398.8,0.8069]
[1728160499158,5.4926,2399.1,2398.8,0.8069]
[1728160499360,0.33349,2399.0,2398.8,0.8069]
[1728160503164,0.3335,2398.9,2398.8,0.8069]
[1728160503865,1.8335,2398.9,2398.8,0.3892]
[1728160504062,1.5,2398.9,2398.6,0.4109]
[1728160504262,1.5,2398.9,2398.3,1.08924227]
[1728160504263,5.5046,2398.8,2398.3,1.08924227]
[1728160504464,0.33357,2398.4,2398.2,1.235]
[1728160504869,0.72987,2398.4,2398.2,5.57452239]
[1728160505061,0.33358,2398.3,2398.2,5.57452239]
[1728160505559,0.72987,2398.4,2398.2,5.57452239]
[1728160506269,1.5,2398.3,2398.2,5.57452239]
[1728160506468,1.5,2398.3,2398.2,5.90812239]
[1728160508572,1.5,2398.3,2398.2,5.57452239]
[1728160508969,1.8963,2398.4,2398.2,10.07772239]
[1728160509266,1.5,2398.4,2398.3,0.33358]
[1728160510068,3.2078,2398.5,2398.2,5.57452239]
[1728160510466,3.2078,2398.5,2398.3,0.33357]
[1728160510673,3.54135,2398.5,2398.3,0.33357]
[1728160511069,3.2078,2398.5,2398.2,5.57452239]
[1728160511576,3.54136,2398.5,2398.3,0.33358]
[1728160512278,0.33358,2398.3,2398.2,5.16362239]
[1728160512480,1.83358,2398.3,2398.2,4.76162239]
[1728160513674,1.83358,2398.3,2398.2,0.4221]
[1728160521181,0.33361,2398.1,2398.0,0.802]
[1728160521480,0.33367,2397.7,2397.5,0.33369]
[1728160521681,0.33367,2397.7,2397.6,1.1944]
[1728160521987,0.33367,2397.7,2397.6,5.49213218]
[1728160521988,1.83367,2397.7,2397.6,5.49213218]
[1728160522183,1.83367,2397.7,2397.6,0.8079]
[1728160524379,0.72326,2397.8,2397.7,0.33366]
[1728160524585,0.72326,2397.8,2397.7,0.3865]
[1728160524586,2.22326,2397.8,2397.7,0.3865]
[1728160529691,1.83366,2397.8,2397.7,0.3865]
[1728160539689,0.43062,2398.1,2397.8,0.33365]
[1728160539891,1.83362,2398.1,2397.9,0.33363]
[1728160540089,1.83362,2398.1,2398.0,0.4231]
[1728160540300,1.83362,2398.1,2398.0,0.8266]
[1728160540695,1.5,2398.1,2398.0,0.8266]
[1728160540896,1.83361,2398.1,2398.0,0.8266]
[1728160558311,1.83361,2398.1,2398.0,0.4035]
[1728160562517,3.2078,2398.2,2398.1,0.33361]
[1728160562707,3.2078,2398.2,2398.1,1.67275922]
[1728160563819,3.2078,2398.5,2398.1,18.82983269]
[1728160564114,3.2078,2398.5,2398.4,0.33357]
[1728160564316,3.2078,2398.5,2398.4,0.87561922]
[1728160564518,3.2078,2398.5,2398.4,10.26085547]
[1728160564720,3.2078,2398.5,2398.4,9.71880625]
[1728160565015,3.2078,2398.5,2398.4,10.8020104]
[1728160565227,4.7078,2398.5,2398.4,10.8020104]
[1728160565611,4.7078,2398.5,2398.4,10.26040689]
[1728160567614,1.5,2398.5,2398.4,10.26040689]
[1728160568116,1.5,2398.5,2398.4,9.71880625]
[1728160570116,1.5,2398.5,2398.4,5.54920625]
[1728160575722,1.5,2398.5,2398.4,5.21563625]
[1728160575723,1.83355,2398.5,2398.4,5.21563625]
[1728160575918,2.24425,2398.5,2398.4,5.21563625]
[1728160582230,2.24425,2398.5,2398.4,5.25293625]
[1728160582826,6.41385,2398.5,2398.4,0.0373]
[1728160583931,2.24425,2398.5,2398.4,0.0373]
[1728160584127,6.41385,2398.5,2398.4,0.0373]
[1728160584331,2.24425,2398.5,2398.4,0.0373]
[1728160584933,6.41385,2398.5,2398.4,0.0373]
[1728160585522,2.24425,2398.5,2398.4,0.0373]
[1728160586424,6.41385,2398.5,2398.4,0.0373]
[1728160586629,2.24425,2398.5,2398.4,0.0373]
[1728160595430,3.14225,2398.5,2398.4,0.0373]
[1728160604451,0.3336,2398.2,2398.1,0.4158]
[1728160604748,1.8336,2398.2,2398.1,5.1003146]
[1728160605848,1.8336,2398.2,2398.1,0.4158]
[1728160606046,3.0569,2398.2,2398.1,0.4158]
[1728160609053,2.7233,2398.2,2397.9,0.8266]
[1728160609253,1.5,2398.0,2397.9,1.2543]
[1728160609454,1.83362,2398.0,2397.9,0.96952601]
[1728160609648,5.04142,2398.0,2397.9,0.96955731]
[1728160609855,5.04142,2398.0,2397.9,0.4277]
[1728160612351,9.7762,2398.0,2397.7,0.4286]
[1728160612550,1.83365,2397.8,2397.7,0.821]
[1728160612853,1.5,2397.8,2397.7,1.15466]
[1728160613354,1.5,2397.9,2397.8,0.33365]
[1728160615752,1.5,2397.9,2397.7,5.84645703]
[1728160616152,1.5,2397.9,2397.8,0.33365]
[1728160616458,1.5,2397.9,2397.7,5.84644703]
[1728160616648,1.5,2397.9,2397.8,0.33365]
[1728160617260,1.5,2397.9,2397.7,5.84645703]
[1728160617662,1.83364,2397.9,2397.7,5.84645703]
[1728160618057,1.5,2397.9,2397.7,5.84645703]
[1728160618662,1.83364,2397.9,2397.7,5.84645703]
[1728160619167,1.83364,2397.9,2397.7,0.821]
[1728160619369,1.83364,2397.9,2397.8,4.81000285]
[1728160619769,2.24734,2397.9,2397.8,4.81000285]
[1728160622161,6.41774,2397.9,2397.8,4.81000285]
[1728160622365,6.41774,2397.9,2397.7,0.3924]
[1728160622366,0.33365,2397.8,2397.7,0.3924]
[1728160622665,2.64845,2397.8,2397.7,0.3924]
[1728160623064,0.33366,2397.7,2397.6,0.4247]
[1728160623260,3.54146,2397.7,2397.6,0.4247]
[1728160623664,3.54146,2397.7,2397.5,0.4272]
[1728160623859,2.22398,2397.6,2397.5,0.4272]
[1728160625563,2.22398,2397.6,2397.4,1.14631]
[1728160625759,2.22398,2397.6,2397.5,0.3931]
[1728160626663,1.8903,2397.6,2397.5,0.3931]
[1728160626866,1.8903,2397.6,2397.5,0.72679]
[1728160629268,1.8903,2397.6,2397.5,0.3931]
[1728160630379,2.22398,2397.6,2397.5,0.3931]
[1728160633474,0.33371,2397.4,2397.3,0.3986]
[1728160633668,5.04151,2397.4,2397.3,0.3986]
[1728160633876,5.04151,2397.4,2397.3,5.24025581]
[1728160634174,5.04151,2397.4,2397.3,0.3986]
[1728160639070,0.33374,2397.2,2396.9,0.33377]
[1728160639380,0.33374,2397.2,2397.0,4.97827885]
[1728160639381,0.75275,2397.1,2397.0,4.97827885]
[1728160639577,0.419,2397.1,2397.0,4.97827885]
[1728160639781,0.419,2397.1,2397.0,9.15027885]
[1728160640169,0.75275,2397.1,2397.0,9.15027885]
[1728160640777,0.419,2397.1,2397.0,9.15027885]
[1728160642185,0.75275,2397.1,2397.0,9.15027885]
[1728160642978,3.96055,2397.1,2397.0,4.97827885]
[1728160644990,3.96055,2397.1,2396.6,0.421]
[1728160644991,7.7988,2397.1,2396.6,0.421]
[1728160645282,1.5,2396.7,2396.6,5.11078589]
[1728160645482,3.2078,2396.8,2396.6,5.11078589]
[1728160645684,2.398,2397.2,2396.7,5.6728]
[1728160645879,2.398,2397.2,2396.9,0.33376]
[1728160646080,2.398,2397.2,2397.0,0.8488]
[1728160646081,2.73174,2397.2,2397.0,0.8488]
[1728160646387,2.73174,2397.2,2397.0,6.09492594]
[1728160651992,0.33375,2397.1,2397.0,6.09492594]
[1728160653493,2.398,2397.2,2397.0,6.09492594]
[1728160653885,2.73174,2397.2,2397.0,6.09492594]
[1728160654084,0.33375,2397.1,2397.0,6.09492594]
[1728160654987,2.73175,2397.2,2397.0,6.09492594]
[1728160655288,0.33375,2397.1,2397.0,6.09492594]
[1728160656987,1.83375,2397.2,2397.0,10.26692594]
[1728160657296,0.33375,2397.1,2397.0,6.09492594]
[1728160657691,0.33375,2397.1,2397.0,10.26692594]
[1728160659999,0.33375,2397.1,2397.0,6.09492594]
[1728160660696,3.2078,2397.2,2397.0,6.09492594]
[1728160660894,4.7078,2397.2,2397.1,0.33375]
[1728160661294,4.7078,2397.2,2397.1,4.92595624]
[1728160662095,1.8337,2397.5,2397.3,0.33372]
[1728160662306,1.8337,2397.5,2397.4,0.794]
[1728160662607,1.8337,2397.5,2397.4,1.2002]
[1728160665698,1.8337,2397.5,2397.4,0.4062]
[1728160665898,1.8337,2397.5,2397.2,0.33373]
[1728160665899,0.33372,2397.4,2397.2,0.33373]
[1728160666104,1.5,2397.3,2397.2,0.33373]
[1728160666294,1.83373,2397.3,2397.2,0.54193264]
[1728160666594,1.83373,2397.3,2397.2,4.70824121]
[1728160669602,2.63403,2397.3,2397.2,4.70824121]
[1728160669806,0.33373,2397.2,2397.1,0.73025]
[1728160670002,2.63403,2397.3,2397.1,1.2725109]
[1728160670206,2.63403,2397.3,2397.1,0.73025]
[1728160670395,2.63403,2397.3,2397.1,0.3965]
[1728160670593,2.63403,2397.3,2397.2,0.33373]
[1728160671499,2.3003,2397.3,2397.2,0.33373]
[1728160673509,2.63403,2397.3,2397.1,0.73024]
[1728160673712,2.63403,2397.3,2397.2,0.33373]